[Event "German Bundesliga 2023-24"]
[Site "Germany"]
[Date "2024.03.16"]
[Round "12.10"]
[White "Abel, Dennes"]
[Black "Kollars, Dmitrij"]
[Result "0-1"]
[ECO "A06"]
[WhiteElo "2404"]
[BlackElo "2633"]
[Annotator "TA"]
[PlyCount "98"]
[EventDate "2023.10.20"]
[EventType "team-tourn"]
[EventCountry "GER"]
[SourceTitle "playchess.com"]
[Source "ChessBase"]
[SourceQuality "1"]
[TimeControl "40/6000+30:3000+30"]

{[%evp 9,98,7,10,0,2,0,0,0,6,10,7,0,0,0,0,0,0,-11,0,0,0,0,0,0,0,0,0,-30,-30,-31,-22,-36,-34,-55,-60,-61,-60,-58,-53,-66,-50,-55,-25,-42,-9,-20,0,0,0,0,0,0,0,0,0,-43,-42,-62,-62,-62,-50,-45,-61,-77,-67,-100,0,0,0,0,0,-178,-35,-354,-335,-1078,-1073,-29963,-29950,-29955,-6175,-29959,-29961,-29980,-29981,-29981,-29973,-29972,-29968,-29981,-1208]} 1. Nf3 {[%emt 0:00:10]} d5 {[%emt 0:00:21]} 2. e3 {[%emt 0:00:17]} c5 {[%emt 0:00:29]} 3. b3 {[%emt 0:00:30]} Nc6 {[%emt 0:00:30]} 4. Bb2 {[%emt 0:00:54]} e6 {[%emt 0:00:36]} 5. d4 {[%emt 0:02:47]} cxd4 {[%emt 0:01:44]} 6. exd4 {[%emt 0:00:44]} g6 {[%emt 0:00:29]} 7. Bd3 {[%emt 0:05:12]} Bg7 {[%emt 0:00:15]} 8. O-O {[%emt 0:01:56] Die Stellung ist ausgeglichen.} Nge7 {[%emt 0:00:28]} 9. Re1 {[%emt 0:05:10]} O-O {[%emt 0:00:58]} 10. Nbd2 {[%emt 0:04:00]} Nf5 {[%emt 0:00:18]} 11. Bxf5 {[%emt 0:05:21]} exf5 {[%emt 0:00:10]} 12. Ne5 {[%emt 0:00:44]} Qc7 {[%emt 0:04:03]} 13. Ndf3 {[%emt 0:02:46]} Re8 {[%emt 0:01:57]} 14. Qd2 {[%emt 0:14:05]} f6 {[%emt 0:21:45]} 15. Nxc6 {[%emt 0:03:41]} Qxc6 {[%emt 0:00:22]} 16. Rxe8+ {[%emt 0:03:28]} Qxe8 {[%emt 0:03:38]} 17. Re1 {[%emt 0:02:05]} Qc6 {[%emt 0:09:18]} 18. Qe2 {[%emt 0:08:08]} Bd7 {[%emt 0:01:38]} 19. c4 {[%emt 0:06:01]} Re8 {[%emt 0:10:39]} 20. Qd3 {[%emt 0:01:45]} Qa6 {[%emt 0:05:00]} 21. Rxe8+ {[%emt 0:08:54]} Bxe8 {[%emt 0:00:03]} 22. a3 {[%emt 0:00:11]} Bf7 {[%emt 0:01:39]} 23. Nd2 {[%emt 0:03:13]} Bh6 {[%emt 0:08:51]} 24. h3 {[%emt 0:03:46]} Bf4 {[%emt 0:08:34]} 25. Qc3 {[%emt 0:01:20]} Qe6 {[%emt 0:01:13]} 26. c5 {[%emt 0:02:50]} Qe2 {[%emt 0:01:24]} 27. Nf1 {[%emt 0:02:00]} Be8 {[%emt 0:01:58]} 28. a4 {[%emt 0:03:58] Lässt Bb5 nicht zu} Qd1 $40 {[%emt 0:02:12][%mdl 128] Schwarz hat was vor.} 29. g3 {[%emt 0:02:40]} Bh6 {[%emt 0:02:59]} 30. f4 {[%emt 0:01:23]} g5 {[%emt 0:02:55]} 31. Bc1 {[%emt 0:01:06]} Bh5 {[%emt 0:02:10] Droht ...Be2 und aus.} 32. Qe3 {[%emt 0:04:17] Weiss ist schwach auf den weissen Feldern} Kf7 {[%emt 0:00:48] Pariert Qe6+.} 33. Kf2 {[%emt 0:00:35] Verhindert Be2.} Qc2+ {[%emt 0:01:12]} 34. Bd2 {[%emt 0:00:56]} Bd1 {[%emt 0:00:52] Schwarz steht aktiver.} 35. fxg5 {[%emt 0:06:26]} Bxg5 {[%emt 0:01:19]} 36. Qe1 {[%emt 0:00:07]} f4 $1 {[%emt 0:02:37] Zielt auf ...fxg3+ ab.} 37. Kg1 {[%emt 0:01:56]} f3 {[%emt 0:05:27]} (37... Qxb3 38. gxf4 Bh6 39. f5 Bxd2 40. Nxd2 Qxa4 41. Qe6+ Kg7 42. Qe7+ (42. Qxd5 Qb4 $11) 42... Kg8 43. Qe6+ (43. Qxf6 Qd7 $11) 43... Kg7 44. Qe7+ (44. Qxd5 Qb4 $11) 44... Kg8 45. Qxf6 $16) ({Vorzuziehen ist} 37... fxg3 $1 $17 {...Bxd2 wäre nun fies.} 38. Bxg5 fxg5) 38. h4 $1 $11 {[%emt 0:00:30]} Bxd2 {[%emt 0:02:03]} 39. Qxd2 {[%emt 0:01:15]} Qxb3 {[%emt 0:00:58][%mdl 4096] Endspiel. KQB-KQN} 40. Qh6 $2 {[%emt 0:01:36] [#]} (40. Qf4 $11 {und Weiss muss sich keine Sorgen machen.}) 40... Bc2 {[%emt 0:05:29]} (40... Qxa4 41. Qxh7+ Kf8 42. Qh8+ (42. Qxb7 $2 Qxd4+ 43. Kh1 Be2 $19) 42... Kf7 43. Qh7+ Kf8 44. Qh6+ (44. Qxb7 $2 Qxd4+ 45. Kh1 Be2 $19) 44... Kf7 45. Qh7+ $11) (40... Qc2 $1 $19 {[%csl Gf3][%cal Rc2g2]} 41. Ne3 f2+ 42. Kg2 Qe4+ (42... Qxa4 $2 43. Qxh7+ Kf8 44. Nf5 $18) 43. Kf1 Qh1+ (43... Bxa4 $2 44. Qh5+ Ke6 45. Kxf2 $17) (43... Qxd4 44. Qxh7+ Kf8 45. Nxd1 $11) 44. Kxf2 Qf3+ (44... Bxa4 $2 45. Qxh7+ Kf8 46. Qxb7 $18) 45. Kg1 Qxg3+ 46. Ng2 Bf3 (46... Bxa4 47. Qxh7+ Qg7 48. Qh5+ Kf8 49. Kf2 $11) 47. Qxh7+ Ke6) 41. Nd2 $2 {[%emt 0:12:53][%mdl 8192] Der Zug kostet die Partie für Weiß.} (41. Qf4 $15) 41... Qc3 $19 {[%emt 0:16:35]} (41... Qxa4 42. Qh5+ (42. Nxf3 $2 Be4 $19) 42... Ke7 43. Qg4 $19) 42. Qh5+ $2 {[%emt 0:08:19] [#]} (42. Kf2 Qxd4+ (42... Bxa4 43. Qxh7+ Kf8 44. Nxf3 $11) 43. Kxf3) 42... Ke7 $1 {[%emt 0:04:30]} 43. Nxf3 {[%emt 0:00:59]} Qe3+ {[%emt 0:03:58]} (43... Bxa4 44. Qxh7+ (44. Qxd5 $2 Qe3+ 45. Kg2 Bc6 $19) 44... Kf8 45. Qh6+ Kf7 46. Qf4 $11) 44. Kg2 {[%emt 0:02:19]} Be4 {[%emt 0:00:40][%cal Oa7a5] ( -> ...a5!)} (44... Bxa4 45. Qxh7+ (45. Qxd5 $2 Bc6 $19) 45... Kf8 46. Qf5 (46. Qxb7 $2 Qe2+ 47. Kg1 Qxf3 $19) (46. Qh8+ Kf7 $11) 46... Qe2+ 47. Kh3 $11) 45. Qg4 {[%emt 0:00:14]} Qe2+ {[%emt 0:01:24] Schwarz setzt Matt.} (45... Qxd4 46. Qg7+ Ke8 47. Qg8+ Kd7 48. Qxh7+ Kc6 49. Qe7 $11) 46. Kg1 {[%emt 0:01:39]} Bxf3 {[%emt 0:01:06][%csl Gf3][%cal Re2g2]} 47. Qg7+ {[%emt 0:00:07]} Ke8 {[%emt 0:01:16][%csl Gf3][%cal Re2g2]} 48. Qg8+ {[%emt 0:00:39]} Kd7 {[%emt 0:00:30][%csl Gf3][%cal Re2g2]} 49. Qg7+ {[%emt 0:00:33]} Qe7 {[%emt 0:00:12] Gewichteter Fehlerwert: Weiß=0.60/Schwarz=0.10 (sehr präzise) .  Verlustzug:     	Weiß=2     	---        Fehler:       	Weiß=1     	Schwarz=2     Ungenau:       	Weiß=4     	Schwarz=2     OK:         	Weiß=14    	Schwarz=14    Bester:       	---       	Schwarz=3     Stark:        	Weiß=1     	Schwarz=2} (49... Ke6 $142 50. Qg8+ Kf5 51. Qc8+ Kg6 52. h5+ Kh6 (52... Kxh5 53. Qf5+ Kh6 54. Qxf6+ Kh5 55. Qf5+ Kh6 56. Qf6+ Kh5 57. Qf5+ Kh6 58. Qf6+ $11) 53. Qf8+ Kxh5 54. Qf7+ Kg4 55. Qg8+ Kh3 56. Qxh7+ Bh5 57. Qxh5+ Qxh5 58. Kf2 Qd1 (58... Qf5+ {führt zum Matt.} 59. Ke3 Qc2 60. Kf3 Qd1+ 61. Kf2 Kg4 62. a5 Qd2+ 63. Kf1 Kf3 64. Kg1 Qg2#) 59. c6 Kg4 (59... Qxd4+ 60. Ke2 bxc6 61. g4 Kxg4 62. a5 Qb2+ 63. Ke3 d4+ 64. Kd3 Kf3 65. Kc4 Qc3#) 60. Ke3 bxc6 (60... Kxg3 {ist ein Selbstmatt.} 61. cxb7 Qb3+ 62. Kd2 Kf2 63. Kc1 Ke2 64. b8=Q Qxb8 65. Kc2 a5 66. Kc1 Kd3 67. Kd1 Qb1#) 61. Kf2 Qd2+ (61... Qxd4+ 62. Ke2 Qb2+ 63. Kd1 Kf3 64. g4 Ke3 65. Ke1 Qe2#) 62. Kf1 Kf3 63. Kg1 Qg2#) 0-1

[Event "German Bundesliga 2023-24"]
[Site "Germany"]
[Date "2024.03.16"]
[Round "12.11"]
[White "Gustafsson, Jan"]
[Black "Walter, Stefan"]
[Result "1-0"]
[ECO "D31"]
[WhiteElo "2620"]
[BlackElo "2382"]
[Annotator "TA"]
[PlyCount "65"]
[EventDate "2023.10.20"]
[EventType "team-tourn"]
[EventCountry "GER"]
[SourceTitle "playchess.com"]
[Source "ChessBase"]
[SourceQuality "1"]
[TimeControl "40/6000+30:3000+30"]

{[%evp 10,65,14,8,21,20,24,0,0,0,0,5,14,10,10,22,35,9,24,22,18,19,22,13,110,101,104,104,131,123,124,105,108,103,89,82,162,130,156,115,173,166,171,187,172,179,182,180,179,175,206,201,221,230,329,244,243,234]} 1. c4 {[%emt 0:00:05]} e6 {[%emt 0:00:25]} 2. Nc3 {[%emt 0:00:13]} d5 {[%emt 0:00:14]} 3. d4 {[%emt 0:00:14]} Be7 {[%emt 0:00:18]} 4. cxd5 {[%emt 0:01:03]} exd5 {[%emt 0:00:09]} 5. Bf4 {[%emt 0:00:12]} c6 {[%emt 0:00:28]} 6. e3 {[%emt 0:00:45]} Bd6 {[%emt 0:00:46]} 7. Qf3 {[%emt 0:00:47]} Ne7 {[%emt 0:09:45]} 8. Bd3 {[%emt 0:10:09]} Bf5 {[%emt 0:07:58] Die Stellung ist ausgeglichen.} 9. Bxd6 {[%emt 0:02:17]} Bxd3 {[%emt 0:00:07]} 10. Qf4 {[%emt 0:05:52]} Nd7 {[%emt 0:13:04]} 11. O-O-O {[%emt 0:09:32]} Bg6 {[%emt 0:02:59]} 12. h4 {[%emt 0:04:44] h5 ist eine echte Drohung.} h5 {[%emt 0:06:15]} 13. Nge2 {[%emt 0:03:02]} Nf5 {[%emt 0:08:16]} 14. Ba3 {[%emt 0:07:34]} Qb8 {[%emt 0:02:33]} 15. Qxb8+ {[%emt 0:33:21]} Rxb8 {[%emt 0:00:26]} 16. Nf4 {[%emt 0:00:06]} Rh6 {[%emt 0:11:31] [#]} (16... Nf6 $11) 17. e4 $1 $16 {[%emt 0:03:53]} dxe4 {[%emt 0:01:09]} 18. Nxe4 {[%emt 0:00:13][%cal Bc3e4,Be4g5,Bg5f3,Bf3d4][%mdl 32]} Bh7 {[%emt 0:05:15]} 19. Rhe1 {[%emt 0:03:47]} Kd8 {[%emt 0:01:30][%cal Be8d8,Bd8c7,Bc7c8][%mdl 32]} 20. Ng5 {[%emt 0:02:02]} Bg8 {[%emt 0:01:45][%cal Od8c7]} 21. d5 {[%emt 0:00:31] Weiß steht deutlich aktiver.} Kc7 {[%emt 0:09:29]} 22. dxc6 {[%emt 0:00:28]} (22. d6+ {sieht schärfer aus.} Kd8 23. b3 b6 24. Bb2) 22... bxc6 {[%emt 0:04:07]} (22... Rxc6+ $16 {ist eine bessere Verteidigung.} 23. Kb1 Rd8) 23. Nf3 {[%emt 0:00:40]} Rd8 {[%emt 0:10:26]} 24. Nd4 {[%emt 0:05:08]} Nd6 {[%emt 0:12:02] [#]} (24... Nxd4 $16 25. Rxd4 c5) 25. Nde6+ $1 $18 {[%emt 0:03:00][%mdl 512]} fxe6 {[%emt 0:00:05]} 26. Bxd6+ {[%emt 0:00:09]} Kc8 {[%emt 0:00:33] Schwarz hat schwache schwarze Felder} 27. Be7 {[%emt 0:00:17]} Re8 {[%emt 0:00:03]} 28. Bg5 {[%emt 0:00:11]} Rh7 {[%emt 0:01:00]} 29. Ng6 $36 {[%emt 0:07:18][%mdl 2048] Weiss bestimmt, wo es lang geht.} Nf6 {[%emt 0:00:07]} 30. Ne5 {[%emt 0:00:23]} Kc7 {[%emt 0:00:26]} 31. Re3 {[%emt 0:00:40]} Ng4 {[%emt 0:02:00]} (31... Nd5 {ist wohl besser.} 32. Ra3 Ra8) 32. Rd7+ {[%emt 0:01:05]} Kc8 {[%emt 0:00:23]} 33. Rxa7 {[%emt 0:00:10] Gewichteter Fehlerwert: Weiß=0.10 (sehr präzise) /Schwarz=0.25 (präzise) .  Fehler:       	---       	Schwarz=4     Ungenau:       	Weiß=1     	---        OK:         	Weiß=16    	Schwarz=8     Bester:       	---       	Schwarz=5     Stark:        	Weiß=1     	---} 1-0

[Event "German Bundesliga 2023-24"]
[Site "Germany"]
[Date "2024.03.16"]
[Round "12.11"]
[White "Fridman, Daniel"]
[Black "Baidetskyi, Valentin"]
[Result "1-0"]
[ECO "E62"]
[WhiteElo "2588"]
[BlackElo "2471"]
[Annotator "TA"]
[PlyCount "113"]
[EventDate "2023.10.20"]
[EventType "team-tourn"]
[EventCountry "GER"]
[SourceTitle "playchess.com"]
[Source "ChessBase"]
[SourceQuality "1"]
[TimeControl "40/6000+30:3000+30"]

{[%evp 16,113,40,32,41,22,14,19,22,18,20,10,5,6,10,15,34,46,48,53,71,40,27,14,18,8,18,0,25,14,45,44,58,58,39,23,24,18,50,29,54,27,32,35,19,27,50,62,72,34,89,97,97,77,136,83,125,140,145,143,143,142,187,175,157,168,167,112,111,98,103,90,185,188,168,155,308,294,495,481,1339,1183,1563,1433,1515,1479,1299,1260,1231,858,29975,7872,29991,29992,29992,29993,29993,29994,29995,29994]} 1. d4 {[%emt 0:00:03]} Nf6 {[%emt 0:00:06]} 2. c4 {[%emt 0:00:06]} g6 {[%emt 0:00:02]} 3. g3 {[%emt 0:00:07]} Bg7 {[%emt 0:00:01]} 4. Bg2 {[%emt 0:00:07]} O-O {[%emt 0:00:05]} 5. Nc3 {[%emt 0:00:05]} d6 {[%emt 0:00:03]} 6. Nf3 {[%emt 0:00:07]} Nc6 {[%emt 0:00:03]} 7. O-O {[%emt 0:00:08]} e5 {[%emt 0:00:02]} 8. d5 {[%emt 0:00:07]} Nb8 {[%emt 0:00:04][%cal Bc6b8,Bb8a6,Ba6c5,Bc5b3][%mdl 32]} 9. e4 {[%emt 0:00:07]} a5 {[%emt 0:00:03]} 10. Rb1 {[%emt 0:02:09]} Na6 {[%emt 0:00:09]} 11. b3 {[%emt 0:00:09][%cal Bb2b3,Bb3b4][%mdl 32]} Nc5 {[%emt 0:00:07] Die Stellung ist ausgeglichen.} 12. Re1 {[%emt 0:00:07]} Bd7 {[%emt 0:00:04]} 13. Qc2 {[%emt 0:15:09]} Nh5 {[%emt 0:12:55]} 14. Be3 {[%emt 0:10:27]} b6 {[%emt 0:00:05]} 15. a3 {[%emt 0:02:20]} a4 {[%emt 0:11:20]} 16. b4 {[%emt 0:00:08]} Nb3 {[%emt 0:00:21]} 17. Nd2 {[%emt 0:02:23]} f5 {[%emt 0:00:05] Droht stark ...f4.} 18. exf5 {[%emt 0:04:32]} Bxf5 {[%emt 0:15:37]} 19. Nde4 {[%emt 0:03:20]} Nf6 {[%emt 0:08:59][%cal Bh5f6,Bf6g4,Bg4e3][%mdl 32]} 20. Rbd1 {[%emt 0:12:33]} Kh8 {[%emt 0:10:18]} 21. Nb5 {[%emt 0:04:52]} Ng4 {[%emt 0:03:58]} 22. h3 {[%emt 0:02:15]} Nxe3 {[%emt 0:01:14]} 23. fxe3 {[%emt 0:00:07]} h5 {[%emt 0:07:14]} 24. Qe2 {[%emt 0:02:06]} Bh6 {[%emt 0:02:08]} 25. Kh2 {[%emt 0:07:02]} Qe7 {[%emt 0:03:16]} 26. Rf1 {[%emt 0:02:05]} Kg7 {[%emt 0:07:20]} 27. Nbc3 {[%emt 0:03:54]} Bd7 {[%emt 0:01:10]} 28. Bf3 {[%emt 0:06:48]} Rf7 {[%emt 0:03:33]} 29. Rf2 {[%emt 0:00:40]} Raf8 {[%emt 0:00:25]} 30. Rdf1 {[%emt 0:00:23]} Kg8 {[%emt 0:06:54]} 31. Qe1 {[%emt 0:03:57]} Kg7 {[%emt 0:02:29]} 32. Kg2 {[%emt 0:03:54]} Qd8 {[%emt 0:03:08]} (32... Bf5 $14) 33. Bd1 $16 {[%emt 0:04:06]} Rxf2+ {[%emt 0:00:34]} 34. Rxf2 {[%emt 0:00:06]} Qc8 {[%emt 0:03:36]} (34... Rxf2+ $142 35. Qxf2 Bg5) 35. Rxf8 {[%emt 0:01:40]} (35. g4 $142 {g5 ist eine echte Drohung.} hxg4 36. hxg4 Rxf2+ (36... Bxg4 $2 37. Rxf8 Kxf8 38. Qh4 $18) 37. Qxf2) 35... Qxf8 {[%emt 0:00:50]} 36. g4 {[%emt 0:05:19]} hxg4 {[%emt 0:00:20]} 37. hxg4 {[%emt 0:00:06] Und jetzt g5 wäre schön.} (37. Bxg4 $6 Bf5 $11) 37... Qe7 {[%emt 0:00:34]} 38. Qf2 {[%emt 0:03:57]} Bg5 {[%emt 0:03:44] [#]} 39. Nxg5 $1 {[%emt 0:00:41]} Qxg5 {[%emt 0:00:03]} 40. Ne4 {[%emt 0:00:09] Verhindert Qf6} Qd8 {[%emt 0:00:09]} 41. Kg3 {[%emt 0:52:28]} ({Besser ist} 41. g5 $18) 41... g5 {[%emt 0:27:58]} 42. Kg2 {[%emt 0:00:00]} Be8 {[%emt 0:02:30]} 43. Ng3 {[%emt 0:00:00] Weiß hat aktiveres Spiel.} Bg6 {[%emt 0:00:12] [#]} (43... Qf6 $16 {ist wohl besser.}) 44. Bc2 $1 $18 {[%emt 0:00:00]} Qf6 {[%emt 0:02:02] Zielt auf ...Qxf2+ ab.} 45. Bf5 $36 {[%emt 0:00:00][%mdl 2048] Weiss ist am Drücker.} Bf7 $2 {[%emt 0:05:06]} (45... Qf7 $16 46. Qf3 Nd2) 46. Ne4 {[%emt 0:00:00]} Qe7 {[%emt 0:01:58]} (46... Qd8 47. Kg3 Qf8 48. Nxg5 Qe7) 47. Kf1 {[%emt 0:00:00]} c5 {[%emt 0:01:55]} (47... Qd8 $142 48. Ke2 b5) 48. dxc6 {[%emt 0:00:00]} Bxc4+ {[%emt 0:00:02]} 49. Kg1 {[%emt 0:00:00] Droht Qh2 und aus.} d5 {[%emt 0:03:30][%cal Bd6d5,Bd5d4][%mdl 32]} 50. Ng3 {[%emt 0:00:00] Und Qh2 würde nun gewinnen.} d4 {[%emt 0:02:21]} 51. Qh2 {[%emt 0:00:00][%cal Oc6c7] Droht Matt per c7!} Kg8 {[%emt 0:01:12]} 52. Qh6 {[%emt 0:00:00] Weiss will mit Nh5 Matt setzen.} dxe3 {[%emt 0:01:44]} 53. Ne4 {[%emt 0:00:00]} (53. Nh5 $142 Nd2 54. Nf6+ Qxf6 55. Qxf6 Nf3+ 56. Kg2 Nh4+ 57. Kh3 Nxf5 58. gxf5) 53... Qd8 {[%emt 0:02:17]} 54. Qh7+ {[%emt 0:00:00] Weiß setzt Matt.} Kf8 {[%emt 0:00:01]} 55. Qh8+ {[%emt 0:00:00]} Bg8 {[%emt 0:00:15]} 56. Qh6+ {[%emt 0:00:00]} ({Und nicht} 56. Qxe5 Qd1+ 57. Kg2 Qe2+ 58. Kg3 Qe1+ 59. Kh2 Qe2+ (59... Qh4+ 60. Kg2 Bc4 61. c7) 60. Kg1 Qe1+ 61. Kh2 Qe2+ (61... Qh4+ 62. Kg2 Bc4 63. c7) 62. Kg3 Qe1+ 63. Kg2 Qe2+ 64. Kg3 $11) 56... Ke8 {[%emt 0:02:19]} 57. Nd6+ {[%emt 0:00:00] Gewichteter Fehlerwert: Weiß=0.10 (sehr präzise) /Schwarz=0.41.  Fehler:       	Weiß=2     	Schwarz=6     Ungenau:       	Weiß=3     	Schwarz=4     OK:         	Weiß=16    	Schwarz=14    Bester:       	Weiß=2     	Schwarz=2     Stark:        	Weiß=2     	---} ({Minderwertig wäre} 57. Qxg5 Qd1+ (57... Qxg5 $2 58. Nxg5 Kd8 59. Be6 $18) 58. Kh2 Qe2+ 59. Kg3 Qe1+ 60. Kg2 Qe2+ 61. Kg3 Qe1+ 62. Kh2 Qe2+ 63. Kh3 Qf1+ 64. Kh2 Qe2+ $11) 1-0

[Event "German Bundesliga 2023-24"]
[Site "Germany"]
[Date "2024.03.16"]
[Round "12.11"]
[White "Neugebauer, Martin"]
[Black "Gumularz, Szymon"]
[Result "0-1"]
[ECO "C07"]
[WhiteElo "2529"]
[BlackElo "2580"]
[Annotator "TA"]
[PlyCount "82"]
[EventDate "2023.10.20"]
[EventType "team-tourn"]
[EventCountry "GER"]
[SourceTitle "playchess.com"]
[Source "ChessBase"]
[SourceQuality "1"]
[TimeControl "40/6000+30:3000+30"]

{[%evp 19,82,24,25,0,0,0,0,0,0,0,0,0,0,0,33,36,29,16,33,15,27,18,22,15,14,15,10,-45,50,-12,-4,-19,-20,-36,-16,-20,-12,-24,-13,-30,-20,-18,-2,-2,0,-49,0,0,41,-25,-22,-110,-87,-177,-183,-191,-169,-375,-421,-422,-433,-422,-389,-532,-517]} 1. e4 {[%emt 16:29:16]} e6 {[%emt 0:00:11]} 2. d4 {[%emt 0:00:10]} d5 {[%emt 0:00:06]} 3. Nd2 {[%emt 0:00:37]} c5 {[%emt 0:00:19]} 4. exd5 {[%emt 0:00:20]} Qxd5 {[%emt 0:00:07]} 5. Ngf3 {[%emt 0:00:07]} cxd4 {[%emt 0:00:07]} 6. Bc4 {[%emt 0:00:18]} Qd6 {[%emt 0:00:08]} 7. O-O {[%emt 0:00:27]} Nf6 {[%emt 0:00:05]} 8. Nb3 {[%emt 0:00:33]} Nc6 {[%emt 0:00:06]} 9. Nbxd4 {[%emt 0:00:37]} Nxd4 {[%emt 0:00:08]} 10. Nxd4 {[%emt 0:00:06]} Be7 {[%emt 0:00:13]} 11. Nb5 {[%emt 0:10:51]} Qc6 {[%emt 0:01:31]} 12. Qe2 {[%emt 0:01:36][%cal Ob5a7]} O-O {[%emt 0:00:24]} 13. Re1 {[%emt 0:13:22] The position is equal.} Rd8 {[%emt 0:06:09]} 14. c3 {[%emt 0:03:38]} a6 {[%emt 0:11:50]} 15. Nd4 {[%emt 0:01:47]} Qc7 {[%emt 0:00:08]} 16. Bg5 {[%emt 0:09:10]} Nd5 {[%emt 0:01:15][%cal Bf6d5,Bd5e7,Be7g6][%mdl 32]} 17. Bxe7 {[%emt 0:02:30]} Nxe7 {[%emt 0:00:49]} 18. Bb3 {[%emt 0:17:01]} Ng6 {[%emt 0:00:57]} 19. Qe4 {[%emt 0:09:34]} Bd7 {[%emt 0:08:44]} 20. Rad1 {[%emt 0:06:24]} a5 {[%emt 0:01:44]} 21. Bc2 {[%emt 0:05:00]} a4 {[%emt 0:00:40]} 22. a3 {[%emt 0:02:44]} Qb6 {[%emt 0:01:05]} 23. h4 {[%emt 0:07:46]} (23. Rb1 $11) 23... Ra5 {[%emt 0:11:30]} (23... Qxb2 $15 24. h5 Nf8) 24. Nf3 {[%emt 0:10:56]} ({Better is} 24. Qg4 $1 $14) 24... Qxb2 $11 {[%emt 0:05:14]} 25. Qb4 {[%emt 0:02:08]} Qxb4 {[%emt 0:01:15]} (25... Qxc2 $2 {is the wrong capture.} 26. Qxa5 Rc8 27. Rxd7 $18) 26. cxb4 {[%emt 0:00:08]} Raa8 {[%emt 0:00:36]} 27. Be4 {[%emt 0:00:47]} Bc6 {[%emt 0:01:53]} 28. Bxc6 {[%emt 0:00:34]} bxc6 {[%emt 0:00:04]} 29. Rc1 {[%emt 0:01:06]} Ne7 $36 {[%emt 0:01:58][%mdl 2048] Black is more active.} 30. Ne5 {[%emt 0:01:11]} Ra6 {[%emt 0:05:15]} 31. Red1 {[%emt 0:00:41]} Rd5 {[%emt 0:01:58]} 32. Nd7 {[%emt 0:02:29]} (32. Rxd5 $11 exd5 (32... cxd5 33. Rc7 $11) 33. Kf1) 32... h5 {[%emt 0:03:38]} (32... Ra7 $15 33. Rxd5 cxd5) 33. Rxd5 {[%emt 0:00:54]} exd5 {[%emt 0:02:28][%mdl 4096] Endgame. KRN-KRN} 34. Re1 {[%emt 0:00:09]} (34. Rc5 $14) 34... Nf5 {[%emt 0:00:50][%cal Of5d4]} 35. Re8+ {[%emt 0:00:31]} (35. Nb8 $11 {keeps the balance.} Rb6 36. Nd7) 35... Kh7 $17 {[%emt 0:00:02][%cal Of5d6]} 36. Rc8 {[%emt 0:01:18]} (36. Nf8+ $17 Kh6 37. Nd7) 36... Nd6 $19 {[%emt 0:00:59]} (36... Nxh4 37. Nc5 Rb6 38. Ra8 $16) 37. Rb8 {[%emt 0:00:33]} Nb5 {[%emt 0:02:25]} 38. Nc5 $2 {[%emt 0:00:24]} (38. f4 {was forced.}) 38... Ra7 {[%emt 0:00:06]} 39. Rc8 {[%emt 0:00:33]} Nxa3 {[%emt 0:00:25]} 40. Rxc6 {[%emt 0:00:14]} Nb5 {[%emt 0:00:52] [#] Against Rd6. White must now prevent ...Nd4.} 41. Rb6 {[%emt 0:09:05]} Nd4 {[%emt 0:01:14] Weighted Error Value: White=0.31/Black=0.13 (very precise) .  Mistake:       	White=7     	Black=2      Inaccurate:     	White=1     	Black=2      OK:         	White=14    	Black=14     Best:        	White=1     	Black=2} 0-1